bitfinex/quotes_BTCUSD_20251231
["timestamp","ask_amount","ask_price","bid_price","bid_amount"]
[1767168483069,0.01126798,88747.0,88737.0,0.01128]
[1767168483298,0.01126785,88748.0,88737.0,0.01128]
[1767168483522,0.01126785,88748.0,88738.0,0.2611636]
[1767168483815,0.01126798,88747.0,88737.0,0.01128]
[1767168484004,0.01126785,88748.0,88737.0,0.01128]
[1767168484397,0.01126798,88747.0,88737.0,0.01128]
[1767168485035,0.01126785,88748.0,88737.0,0.01128]
[1767168485205,0.01126811,88746.0,88737.0,0.01128]
[1767168485533,0.01126798,88747.0,88737.0,0.01128]
[1767168485738,0.01126785,88748.0,88737.0,0.01128]
[1767168486152,0.01126773,88749.0,88737.0,0.01128]
[1767168486648,0.0112676,88750.0,88737.0,0.01128]
[1767168486843,0.01126773,88749.0,88737.0,0.01128]
[1767168487178,0.13953,88757.0,88749.0,0.000549]
[1767168487375,0.15079671,88757.0,88749.0,0.000549]
[1767168487532,0.13953,88757.0,88749.0,0.000549]
[1767168487741,0.13953,88757.0,88747.0,0.01128]
[1767168487947,0.09880969,88759.0,88748.0,0.15411806]
[1767168487948,0.03121082,88759.0,88748.0,0.15411806]
[1767168488144,0.03121082,88759.0,88749.0,0.2611636]
[1767168488373,0.04247728,88759.0,88749.0,0.2611636]
[1767168488854,0.01126659,88758.0,88749.0,0.2611636]
[1767168489212,0.04247728,88759.0,88749.0,0.2611636]
[1767168489428,0.01126659,88758.0,88749.0,0.2611636]
[1767168489958,0.01126671,88757.0,88749.0,0.2611636]
[1767168490255,0.01126659,88758.0,88749.0,0.2611636]
[1767168490452,0.01126659,88758.0,88748.0,0.15411806]
[1767168490689,0.01126671,88757.0,88748.0,0.15411806]
[1767168491208,0.01126659,88758.0,88748.0,0.15411806]
[1767168493750,0.04247728,88759.0,88748.0,0.15411806]
[1767168493954,0.01126697,88755.0,88747.0,0.01128]
[1767168494994,0.15079684,88756.0,88747.0,0.01128]
[1767168495709,0.13953,88756.0,88747.0,0.01128]
[1767168496051,0.15079684,88756.0,88747.0,0.01128]
[1767168496259,0.01126697,88755.0,88747.0,0.01128]
[1767168496668,0.15079684,88756.0,88747.0,0.01128]
[1767168496874,0.01126697,88755.0,88747.0,0.01128]
[1767168497322,0.13953,88756.0,88747.0,0.01128]
[1767168497745,0.01126697,88755.0,88747.0,0.01128]
[1767168498373,0.15079684,88756.0,88747.0,0.01128]
[1767168498592,0.13953,88756.0,88747.0,0.01128]
[1767168499659,0.15079684,88756.0,88747.0,0.01128]
[1767168499775,0.13953,88756.0,88747.0,0.01128]
[1767168500384,0.15079684,88756.0,88747.0,0.01128]
[1767168500586,0.13953,88756.0,88747.0,0.01128]
[1767168501116,0.15079684,88756.0,88747.0,0.01128]
[1767168501303,0.13953,88756.0,88747.0,0.01128]
[1767168501693,0.01126697,88755.0,88747.0,0.01128]
[1767168501912,0.13953,88756.0,88747.0,0.01128]
[1767168501913,0.15079684,88756.0,88747.0,0.01128]
[1767168503815,0.13953,88756.0,88747.0,0.01128]
[1767168504915,0.15079684,88756.0,88747.0,0.01128]
[1767168505132,0.01126697,88755.0,88747.0,0.01128]
[1767168505744,0.15079684,88756.0,88747.0,0.01128]
[1767168505950,0.13953,88756.0,88747.0,0.01128]
[1767168506165,0.01126709,88754.0,88747.0,0.01128]
[1767168506794,0.01126722,88753.0,88747.0,0.01128]
[1767168507086,0.01126709,88754.0,88747.0,0.01128]
[1767168508078,0.01126709,88754.0,88747.0,0.15188]
[1767168508704,0.01126722,88753.0,88747.0,0.15188]
[1767168508911,0.01126709,88754.0,88747.0,0.15188]
[1767168509844,0.06760216,88755.0,88747.0,0.15188]
[1767168510222,0.01126684,88756.0,88747.0,0.15188]
[1767168510633,0.01126697,88755.0,88747.0,0.15188]
[1767168511055,0.01126684,88756.0,88747.0,0.15188]
[1767168511296,0.01126697,88755.0,88747.0,0.15188]
[1767168511811,0.01126684,88756.0,88747.0,0.15188]
[1767168513083,0.01126709,88754.0,88747.0,0.15188]
[1767168513289,0.01126697,88755.0,88747.0,0.15188]
[1767168514077,0.01126684,88756.0,88747.0,0.15188]
[1767168514810,0.01126709,88754.0,88747.0,0.15188]
[1767168514987,0.01126697,88755.0,88747.0,0.15188]
[1767168515762,0.01126709,88754.0,88747.0,0.15188]
[1767168516247,0.01126697,88755.0,88747.0,0.15188]
[1767168517034,0.01126684,88756.0,88747.0,0.15188]
[1767168517636,0.01126697,88755.0,88747.0,0.15188]
[1767168518141,0.01126709,88754.0,88747.0,0.15188]
[1767168518944,0.01126697,88755.0,88747.0,0.15188]
[1767168519096,0.01126671,88757.0,88747.0,0.15188]
[1767168519306,0.01126684,88756.0,88747.0,0.15188]
[1767168519506,0.01126671,88757.0,88747.0,0.15188]
[1767168520762,0.01126684,88756.0,88747.0,0.15188]
[1767168520944,0.01126671,88757.0,88747.0,0.15188]
[1767168521146,0.01126824,88745.0,88739.0,0.03872349]
[1767168521398,8.2e-07,88759.0,88745.0,0.001099]
[1767168521559,8.2e-07,88759.0,88755.0,0.13955557]
[1767168521773,8.2e-07,88759.0,88757.0,0.1406]
[1767168522290,0.05632143,88777.0,88756.0,0.01128]
[1767168522292,0.0001135,88780.0,88766.0,0.1406]
[1767168522639,0.0001135,88780.0,88771.0,0.1406]
[1767168522640,0.00019315,88780.0,88771.0,0.1406]
[1767168523420,0.01126394,88780.0,88771.0,0.1406]
[1767168524222,0.01126392,88779.0,88771.0,0.1406]
[1767168524400,0.01126405,88778.0,88771.0,0.14019999]
[1767168524765,0.01126392,88779.0,88768.0,0.01356806]
[1767168525166,0.01126405,88778.0,88768.0,0.01356806]
[1767168525361,0.01126405,88778.0,88768.0,0.27473166]
[1767168526060,0.01126392,88779.0,88768.0,0.2611636]
[1767168526265,0.01126405,88778.0,88768.0,0.2611636]
[1767168526724,0.01126394,88780.0,88767.0,0.01128]
[1767168526950,0.01090805,88778.0,88769.0,0.2611636]
[1767168527622,0.01126417,88777.0,88769.0,0.2611636]
[1767168527795,0.01090805,88778.0,88769.0,0.2611636]
[1767168528207,0.01090805,88778.0,88767.0,0.01128]
[1767168528703,0.06758399,88779.0,88767.0,0.01128]
[1767168528885,0.01126405,88778.0,88767.0,0.01128]
[1767168530013,0.01126405,88778.0,88768.0,0.13993]
[1767168530229,0.06758399,88779.0,88768.0,0.13993]
[1767168530437,0.01126405,88778.0,88769.0,0.13993]
[1767168530633,0.01126405,88778.0,88769.0,0.13988674]
[1767168531195,0.01126417,88777.0,88769.0,0.13988674]
[1767168531395,0.0112643,88776.0,88769.0,0.13988674]
[1767168531595,0.0675867,88775.0,88769.0,0.133575]
[1767168531841,0.00830443,88775.0,88769.0,0.133575]
[1767168532061,0.01126455,88774.0,88769.0,0.13353135]
[1767168532203,0.01126405,88778.0,88769.0,0.13353135]
[1767168532397,0.01126405,88778.0,88774.0,0.140479]
[1767168532650,0.01126392,88779.0,88774.0,0.13993]
[1767168532988,0.01126405,88778.0,88767.0,0.15121]
[1767168533224,0.01126392,88779.0,88767.0,0.15121]
[1767168533722,0.01126417,88777.0,88767.0,0.15121]
[1767168534347,0.0112643,88776.0,88767.0,0.15121]
[1767168534663,0.01126417,88777.0,88767.0,0.15121]
[1767168535005,0.0112643,88776.0,88767.0,0.15121]
[1767168536629,0.01126443,88775.0,88767.0,0.15121]
[1767168536832,0.0112643,88776.0,88767.0,0.15121]
[1767168538014,0.01126417,88777.0,88767.0,0.15121]
[1767168538333,0.0112643,88776.0,88767.0,0.15121]
[1767168538839,0.01126417,88777.0,88767.0,0.15121]
[1767168538993,0.0112643,88776.0,88767.0,0.15121]
[1767168539187,0.01126417,88777.0,88767.0,0.15121]
[1767168539422,0.0112643,88776.0,88767.0,0.15121]
[1767168540002,0.01126417,88777.0,88767.0,0.15121]
[1767168541034,0.0112643,88776.0,88767.0,0.15121]
[1767168541214,0.01126405,88778.0,88767.0,0.15121]
[1767168541596,0.0112643,88776.0,88767.0,0.15121]
[1767168541843,0.01126405,88778.0,88767.0,0.15121]
[1767168542203,0.0112643,88776.0,88767.0,0.15121]
[1767168542636,0.01126417,88777.0,88767.0,0.15121]
[1767168543031,0.01126417,88777.0,88767.0,0.01128]
[1767168543230,0.01126405,88778.0,88767.0,0.01123765]
[1767168544442,0.01126417,88777.0,88767.0,0.01123765]
[1767168544603,0.0112643,88776.0,88767.0,0.01123765]
[1767168544801,0.01126405,88778.0,88767.0,0.01123765]
[1767168545052,0.01126405,88778.0,88767.0,0.01119637]
[1767168545252,0.06758407,88779.0,88767.0,0.01119637]
[1767168545715,1.5e-07,88780.0,88767.0,0.01119637]
[1767168545916,1.5e-07,88780.0,88769.0,0.01356806]
[1767168547111,1.5e-07,88780.0,88770.0,0.26099785]
[1767168547257,0.01126394,88780.0,88769.0,0.01356806]
[1767168547468,1.5e-07,88780.0,88769.0,0.01352518]
[1767168548235,0.01126394,88780.0,88769.0,0.01352518]
[1767168548381,0.01126392,88779.0,88767.0,0.01119637]
[1767168548998,0.01126394,88780.0,88767.0,0.01119637]
[1767168550086,0.01126405,88778.0,88767.0,0.01119637]
[1767168550296,0.13921,88769.0,88763.0,0.0001135]
[1767168550500,0.13921,88769.0,88760.0,0.01128]
[1767168550501,0.01126544,88767.0,88760.0,0.01128]
[1767168550700,0.01126532,88768.0,88760.0,0.01128]
[1767168551466,0.15047519,88769.0,88760.0,0.01128]
[1767168552109,0.01126544,88767.0,88760.0,0.01128]
[1767168552313,0.01126544,88767.0,88760.0,0.00576819]
[1767168552594,0.01126532,88768.0,88760.0,0.00576819]
[1767168553658,0.01126544,88767.0,88760.0,0.00576819]
[1767168553869,0.0002,88770.0,88760.0,0.00576819]
[1767168554032,0.0002,88770.0,88767.0,0.000549]
[1767168554213,0.0002,88770.0,88760.0,0.00576819]
[1767168555102,0.0002,88770.0,88760.0,0.15146819]
[1767168555517,0.01146506,88770.0,88760.0,0.15146819]
[1767168555770,0.0002,88770.0,88760.0,0.15146819]
[1767168558646,0.0002,88770.0,88761.0,0.01128]
[1767168559257,0.01146506,88770.0,88761.0,0.01128]
[1767168559482,0.0002,88770.0,88761.0,0.01128]
[1767168559914,0.01146506,88770.0,88761.0,0.01128]
[1767168560313,0.06779039,88770.0,88761.0,0.01128]
[1767168560514,0.01126519,88769.0,88761.0,0.01128]
[1767168560731,0.0112657,88765.0,88756.0,0.0001135]
[1767168560924,0.01126532,88768.0,88759.0,0.01128]
[1767168561120,0.01126544,88767.0,88759.0,0.01128]
[1767168561394,0.01126557,88766.0,88759.0,0.01128]
[1767168561602,0.01126544,88767.0,88759.0,0.01128]
[1767168562914,0.01126532,88768.0,88759.0,0.01128]
[1767168563507,0.01126519,88769.0,88759.0,0.01128]
[1767168565024,0.01146506,88770.0,88759.0,0.01128]
[1767168565602,0.0002,88770.0,88759.0,0.01128]
[1767168565826,0.0002,88770.0,88759.0,0.15173]
[1767168567622,0.0002,88770.0,88761.0,0.14045]
[1767168571590,0.05632596,88769.0,88761.0,0.14045]
[1767168571810,0.01126519,88769.0,88761.0,0.14045]
[1767168572107,0.01126532,88768.0,88761.0,0.14045]
[1767168573761,0.01126544,88767.0,88761.0,0.14045]
[1767168574834,0.01126532,88768.0,88761.0,0.14045]
[1767168575351,0.01126544,88767.0,88761.0,0.14045]
[1767168575949,0.01126544,88767.0,88761.0,0.14040614]
[1767168576457,0.01126532,88768.0,88761.0,0.14040614]
[1767168576763,0.01126544,88767.0,88761.0,0.14036473]
[1767168576962,0.01126519,88769.0,88761.0,0.14036473]
[1767168578823,0.01126532,88768.0,88761.0,0.14036473]
[1767168579582,0.01126532,88768.0,88759.0,0.01128]
[1767168580718,0.01126544,88767.0,88759.0,0.01128]
[1767168580921,0.01126532,88768.0,88759.0,0.01128]
[1767168581563,0.06779085,88770.0,88759.0,0.01128]
[1767168581793,0.01126519,88769.0,88759.0,0.01128]
[1767168583236,0.01126519,88769.0,88759.0,0.27227785]
[1767168583574,0.0002,88770.0,88760.0,0.14045]
[1767168583993,0.14451,88769.0,88759.0,0.27227785]
[1767168584176,0.143961,88769.0,88759.0,0.27227785]
[1767168586729,0.0002,88770.0,88759.0,0.27227785]
[1767168587536,0.0002,88770.0,88760.0,0.26099785]
[1767168587710,0.0002,88770.0,88759.0,0.41952431]
[1767168587919,0.0002,88770.0,88759.0,0.14726]
[1767168588232,0.0002,88770.0,88760.0,0.5219957]
[1767168588426,0.0002,88770.0,88760.0,0.26099785]
[1767168589313,0.0002,88770.0,88760.0,0.5219957]
[1767168590121,0.0002,88770.0,88760.0,0.26099785]
[1767168591472,0.0002,88770.0,88761.0,0.13598]
[1767168592814,0.0002,88770.0,88760.0,0.53326013]
[1767168593189,0.0002,88770.0,88760.0,0.5219938]
[1767168595431,0.14807,88770.0,88759.0,0.01128]
[1767168595648,0.14807,88770.0,88760.0,0.2609969]
[1767168598424,0.14807,88770.0,88760.0,0.5219938]
[1767168598856,0.15933506,88770.0,88760.0,0.5219938]
[1767168599063,0.14807,88770.0,88760.0,0.5219938]
[1767168600162,0.15909113,88778.0,88770.0,0.00035]
[1767168600403,0.15913417,88777.0,88770.0,0.00035]
[1767168600606,0.14787,88777.0,88769.0,0.01356806]
[1767168601189,0.14787,88775.0,88769.0,0.01336906]
[1767168601747,0.15913443,88775.0,88769.0,0.01336906]
[1767168602142,0.15115455,88774.0,88769.0,0.01336906]
[1767168602352,0.13989,88774.0,88769.0,0.01336906]
[1767168603261,0.0675864,88776.0,88766.0,0.01128]
[1767168603440,0.13989,88765.0,88763.0,0.01128]
[1767168603700,0.00055,88766.0,88765.0,0.000549]
[1767168603934,0.15115481,88772.0,88763.0,0.01128]
[1767168604170,0.01126494,88771.0,88763.0,0.01128]
[1767168604981,0.01126481,88772.0,88763.0,0.01128]
[1767168605154,0.01126468,88773.0,88763.0,0.01128]
[1767168605497,0.01126481,88772.0,88763.0,0.01128]
[1767168606094,0.01126494,88771.0,88763.0,0.01128]
[1767168606321,0.01126506,88770.0,88763.0,0.01128]
[1767168606679,0.01126494,88771.0,88763.0,0.01128]
[1767168607172,0.01126481,88772.0,88763.0,0.01128]
[1767168607571,0.01126494,88771.0,88763.0,0.01128]
[1767168608315,0.01126506,88770.0,88763.0,0.01128]
[1767168608656,0.00830455,88769.0,88763.0,0.01128]
[1767168609166,0.01122349,88770.0,88763.0,0.01128]
[1767168609371,0.01126519,88769.0,88763.0,0.01128]
[1767168609798,0.01122349,88770.0,88763.0,0.01128]
[1767168610466,0.01126519,88769.0,88763.0,0.01128]
[1767168610796,0.01122349,88770.0,88763.0,0.01128]
[1767168610988,0.01126519,88769.0,88763.0,0.01128]
[1767168611197,0.01122349,88770.0,88763.0,0.01128]
[1767168612109,0.01126494,88771.0,88763.0,0.01128]
[1767168612820,0.01126506,88770.0,88763.0,0.01128]
[1767168614163,4.136e-05,88769.0,88763.0,0.01128]
[1767168614771,0.01130655,88769.0,88763.0,0.01128]
[1767168616200,0.01130655,88769.0,88756.0,0.0001135]
[1767168616201,0.15115557,88766.0,88758.0,0.01128]
[1767168616379,0.13989,88764.0,88758.0,0.01128]
[1767168618144,0.14961136,88763.0,88758.0,0.01128]
[1767168619053,4.136e-05,88763.0,88758.0,0.01128]
[1767168620305,0.14961136,88763.0,88758.0,0.01128]
[1767168622808,4.136e-05,88763.0,88758.0,0.01128]
[1767168623654,0.14961136,88763.0,88758.0,0.01128]
[1767168628245,0.14196791,88763.0,88758.0,0.01128]
[1767168628535,0.0112657,88765.0,88758.0,0.01128]
[1767168629380,0.01126557,88766.0,88758.0,0.01128]
[1767168630918,0.01126582,88764.0,88756.0,0.0001135]
[1767168631119,0.1466867,88762.0,88756.0,0.0001135]
[1767168631332,0.1466867,88762.0,88749.0,0.0001135]
[1767168631334,0.01126785,88748.0,88741.0,0.06065293]
[1767168631559,0.01126785,88748.0,88732.0,0.01128]
[1767168631560,0.14957,88745.0,88732.0,0.01128]
[1767168631869,0.01126836,88744.0,88732.0,0.01128]
[1767168632096,0.16083824,88745.0,88734.0,0.2609969]
[1767168632399,0.16083824,88745.0,88732.0,0.01128]
[1767168632400,0.01126912,88738.0,88735.0,5e-07]
[1767168632601,0.14957,88736.0,88735.0,4.1e-06]
[1767168635779,0.022549,88739.0,88708.0,0.0001135]
[1767168635780,0.01127116,88722.0,88708.0,0.0001135]
[1767168635978,0.01127116,88722.0,88712.0,0.2609969]
[1767168635979,0.011055,88721.0,88712.0,0.2609969]
[1767168636250,0.22538635,88737.0,88712.0,0.2609969]
[1767168636251,0.01128,88728.0,88722.0,0.14223]
[1767168636399,0.01128,88728.0,88725.0,0.14223]
[1767168636802,0.01128,88728.0,88724.0,0.01356806]
[1767168637191,0.01073,88728.0,88724.0,0.01356806]
[1767168638656,0.00234666,88728.0,88724.0,0.15579806]
[1767168638835,0.01128,88736.0,88724.0,0.15579806]
[1767168639071,0.02254938,88736.0,88724.0,0.15579806]
[1767168639199,0.01128,88736.0,88724.0,0.14223]
[1767168639399,0.02254938,88736.0,88724.0,0.14223]
[1767168639684,0.01128,88736.0,88724.0,0.14223]
[1767168639835,0.02254938,88736.0,88724.0,0.14223]
[1767168640433,0.01128,88735.0,88727.0,0.14223]
[1767168641479,0.01128,88735.0,88726.0,0.2609969]
[1767168642325,0.14832,88728.0,88714.0,0.01128]
[1767168642551,0.01126976,88733.0,88714.0,0.01128]
[1767168642552,0.01126989,88732.0,88719.0,0.01356806]
[1767168642735,0.01127014,88730.0,88720.0,0.2609969]
[1767168642941,0.01127001,88731.0,88720.0,0.2609969]
[1767168643116,0.01127014,88730.0,88720.0,0.2609969]
[1767168643314,0.000549,88720.0,88714.0,0.01128]
[1767168643838,0.01127039,88728.0,88714.0,0.01128]
[1767168644000,0.02255052,88727.0,88718.0,0.2609969]
[1767168644401,0.01128,88727.0,88718.0,0.2609969]
[1767168645402,0.01127065,88726.0,88718.0,0.2609969]
[1767168645783,0.02255052,88727.0,88718.0,0.2609969]
[1767168646220,0.01127065,88726.0,88718.0,0.2604479]
[1767168646400,0.01127065,88726.0,88714.0,0.00824029]
[1767168647354,0.01127078,88725.0,88714.0,0.00824029]
[1767168647538,0.01128,88727.0,88714.0,0.00824029]
[1767168647883,0.02255052,88727.0,88714.0,0.00824029]
[1767168648292,0.01127065,88726.0,88714.0,0.00824029]
[1767168648490,0.02255052,88727.0,88714.0,0.00824029]
[1767168649136,0.02255052,88727.0,88714.0,0.15500029]
[1767168649515,0.01128,88727.0,88714.0,0.15500029]
[1767168650449,0.01128,88727.0,88717.0,0.2609969]
[1767168651852,0.01128,88727.0,88714.0,0.15500029]
[1767168655925,0.01128,88727.0,88714.0,0.15507979]
[1767168662685,0.02255052,88727.0,88714.0,0.15507979]
[1767168663125,0.01128,88727.0,88714.0,0.15507979]
[1767168663325,0.02255052,88727.0,88714.0,0.15507979]
[1767168663508,0.01128,88727.0,88714.0,0.15507979]
[1767168665692,0.0001135,88732.0,88728.0,0.14872]
[1767168665940,0.01128,88731.0,88728.0,0.14872]
[1767168666115,0.01128,88731.0,88720.0,0.26130984]
[1767168666323,0.01128,88731.0,88721.0,0.14872]
[1767168670825,0.02255001,88731.0,88721.0,0.14872]
[1767168671037,0.01127027,88729.0,88715.0,0.14872]
[1767168671244,0.06762086,88730.0,88715.0,0.14872]
[1767168671874,0.02255001,88731.0,88715.0,0.14872]
[1767168672098,0.01127014,88730.0,88715.0,0.14872]
[1767168673142,0.02255001,88731.0,88715.0,0.14872]
[1767168673294,0.01127014,88730.0,88715.0,0.14872]
[1767168674966,0.01128,88729.0,88715.0,0.14872]
[1767168675235,0.02255027,88729.0,88715.0,0.14872]
[1767168675551,0.01128,88729.0,88715.0,0.14872]
[1767168676440,0.02255027,88729.0,88715.0,0.14872]
[1767168676943,0.01128,88729.0,88715.0,0.14872]
[1767168678313,0.02255027,88729.0,88715.0,0.14872]
[1767168679068,0.01572,88728.0,88714.0,0.00831979]
[1767168679494,0.01572,88728.0,88714.0,0.15541979]
[1767168679716,0.02699039,88728.0,88714.0,0.15541979]
[1767168679876,0.02255027,88729.0,88714.0,0.15541979]
[1767168680210,0.01127039,88728.0,88714.0,0.15541979]
[1767168681526,0.01572,88726.0,88714.0,0.00831979]
[1767168681754,0.01127116,88722.0,88714.0,0.00831979]
[1767168681959,0.0676273,88722.0,88714.0,0.00831979]
[1767168682168,0.01127128,88721.0,88714.0,0.00831979]
[1767168682374,0.01127116,88722.0,88714.0,0.00831979]
[1767168682575,0.01127128,88721.0,88714.0,0.00831979]
[1767168682789,0.0112709,88724.0,88714.0,0.00831979]
[1767168683001,0.01127103,88723.0,88714.0,0.00831979]
[1767168683205,0.01127116,88722.0,88714.0,0.00831979]
[1767168683600,0.01127128,88721.0,88714.0,0.00831979]
[1767168684045,0.01127116,88722.0,88714.0,0.00831979]
[1767168684257,0.01127128,88721.0,88714.0,0.00831979]
[1767168685086,0.01127116,88722.0,88714.0,0.00831979]
[1767168685087,0.01127103,88723.0,88714.0,0.00831979]
[1767168685522,0.01127141,88720.0,88714.0,0.00831979]
[1767168685730,0.01127128,88721.0,88714.0,0.00831979]
[1767168685938,0.01127141,88720.0,88714.0,0.00831979]
[1767168686591,0.01127128,88721.0,88714.0,0.00831979]
[1767168687741,0.06762806,88721.0,88714.0,0.00831979]
[1767168687947,0.01127154,88719.0,88714.0,0.00831979]
[1767168688548,0.01127166,88718.0,88714.0,0.00831979]
[1767168688953,0.01127154,88719.0,88714.0,0.00831979]
[1767168689907,0.01127141,88720.0,88714.0,0.00831979]
[1767168690112,0.01127141,88720.0,88714.0,7.95e-05]
[1767168690761,0.01127179,88717.0,88714.0,7.95e-05]
[1767168692943,0.06763106,88717.0,88714.0,7.95e-05]
[1767168694628,0.05636006,88716.0,88714.0,7.95e-05]
[1767168695691,0.23670056,88720.0,88701.0,0.0001135]
[1767168695693,0.05636287,88711.0,88701.0,0.0001135]
[1767168695895,0.05636287,88711.0,88701.0,4.383e-05]
[1767168695896,0.01127306,88707.0,88701.0,4.383e-05]
[1767168696273,0.06763787,88708.0,88701.0,4.383e-05]
[1767168696438,0.01127306,88707.0,88701.0,4.383e-05]
[1767168696861,0.01127294,88708.0,88701.0,4.383e-05]
[1767168697067,0.01127306,88707.0,88701.0,4.383e-05]
[1767168697264,0.01127294,88708.0,88701.0,4.383e-05]
[1767168697474,0.01127319,88706.0,88701.0,4.383e-05]
[1767168697733,0.07891824,88708.0,88701.0,4.383e-05]
[1767168697936,0.02255294,88708.0,88701.0,4.383e-05]
[1767168698339,0.01128,88708.0,88701.0,4.383e-05]
[1767168700553,0.05636828,88703.0,88701.0,4.383e-05]
[1767168700880,0.01127319,88706.0,88689.0,0.1471]
[1767168700881,0.06764619,88697.0,88689.0,0.1471]
[1767168701045,0.01128,88699.0,88697.0,0.001099]
[1767168701258,0.01128,88699.0,88693.0,0.1471]
[1767168702048,0.010731,88699.0,88693.0,0.1471]
[1767168703029,0.000549,88693.0,88689.0,8.37e-05]
[1767168703446,0.01127459,88695.0,88689.0,8.37e-05]
[1767168703649,0.010731,88699.0,88689.0,8.37e-05]
[1767168703650,0.06710189,88699.0,88689.0,8.37e-05]
[1767168704079,0.01127446,88696.0,88689.0,8.37e-05]
[1767168704268,0.01127433,88697.0,88689.0,8.37e-05]
[1767168704469,0.01127421,88698.0,88689.0,8.37e-05]
[1767168705054,0.01127421,88698.0,88689.0,0.1471837]
[1767168705260,0.010731,88699.0,88689.0,0.1471837]
[1767168705905,0.010731,88699.0,88690.0,0.1471]
[1767168713011,0.01127357,88703.0,88690.0,0.1471]
[1767168713294,0.01128,88698.0,88692.0,0.14757]
[1767168713492,0.01073,88698.0,88692.0,0.14757]
[1767168713873,0.01128,88698.0,88692.0,0.14757]
[1767168721141,0.0112737,88702.0,88692.0,0.14757]
[1767168721447,0.01128,88705.0,88693.0,0.14557]
[1767168721677,0.01127306,88707.0,88695.0,0.14557]
[1767168721822,0.01128,88706.0,88698.0,0.14557]
[1767168722849,0.01128,88706.0,88698.0,0.14467432]
[1767168723279,0.02255319,88706.0,88698.0,0.14467432]
[1767168723484,0.01127332,88705.0,88698.0,0.14467432]
[1767168723682,0.01127332,88705.0,88698.0,0.14412532]
[1767168725486,0.01127344,88704.0,88698.0,0.14412532]
[1767168725687,0.0112737,88702.0,88698.0,0.14412532]
[1767168725911,0.01127357,88703.0,88698.0,0.14412532]
[1767168726679,0.01127332,88705.0,88698.0,0.14412532]
[1767168727582,0.01127344,88704.0,88698.0,0.14412532]
[1767168727790,0.01127332,88705.0,88698.0,0.14412532]
[1767168728007,0.02255319,88706.0,88698.0,0.14412532]
[1767168728375,0.01128,88706.0,88698.0,0.14412532]
[1767168730306,0.0001135,88711.0,88698.0,0.14412532]
[1767168730540,0.03041006,88721.0,88698.0,0.14412532]
[1767168730541,0.01138428,88725.0,88709.0,0.14557]
[1767168730749,0.01138428,88725.0,88716.0,0.14557]
[1767168730750,0.0001135,88725.0,88716.0,0.14557]
[1767168731341,0.01138428,88725.0,88716.0,0.14557]
[1767168731895,0.01138428,88725.0,88716.0,0.1456537]
[1767168732822,0.0001135,88725.0,88716.0,0.1456537]
[1767168733264,5e-07,88725.0,88716.0,0.1456537]
[1767168740892,0.14191365,88790.0,88716.0,0.1456537]
[1767168740893,0.01126747,88751.0,88727.0,0.01127052]
[1767168741115,0.01138085,88752.0,88722.0,0.23898756]
[1767168741116,0.0001135,88752.0,88740.0,0.2614516]
[1767168741324,0.0001135,88752.0,88741.0,0.010657]
[1767168741684,0.1427335,88752.0,88741.0,0.010657]
[1767168742621,0.01126684,88756.0,88741.0,0.010657]
[1767168742622,0.01132,88757.0,88743.0,0.01126849]
[1767168742778,0.15394,88757.0,88748.0,0.2614516]
[1767168742979,0.0002,88762.0,88748.0,0.2614516]
[1767168743180,0.0002,88762.0,88748.0,0.2727716]
[1767168743401,0.0002,88762.0,88749.0,0.13986]
[1767168743824,0.00046691,88759.0,88749.0,0.13986]
[1767168744641,0.00046691,88759.0,88749.0,0.4013116]
[1767168746439,0.00046691,88759.0,88749.0,0.40126904]
[1767168747729,0.01126798,88747.0,88728.0,0.01138389]
[1767168747934,0.14262,88744.0,88730.0,0.2727716]
[1767168749568,0.06761061,88744.0,88735.0,5e-07]
[1767168749771,0.01126912,88738.0,88735.0,5e-07]
[1767168749977,0.153889,88739.0,88735.0,5e-07]
[1767168750237,0.14262,88737.0,88735.0,5e-07]
[1767168750773,0.15388938,88736.0,88730.0,0.00988326]
[1767168750973,0.000436,88730.0,88728.0,0.0001135]
[1767168751177,0.01126951,88735.0,88728.0,0.0001135]
[1767168751496,0.15389001,88731.0,88728.0,3.5e-06]
[1767168751793,0.14262,88730.0,88728.0,3.5e-06]
[1767168752105,0.14269166,88730.0,88728.0,3.5e-06]
[1767168759113,7.166e-05,88730.0,88728.0,3.5e-06]
[1767168763329,0.00549338,88731.0,88728.0,3.5e-06]
[1767168763531,0.05346275,88729.0,88728.0,3.5e-06]
[1767168763743,0.19608275,88729.0,88728.0,3.5e-06]
[1767168766814,0.19319415,88729.0,88728.0,3.5e-06]
[1767168770135,0.14262,88729.0,88728.0,3.5e-06]
[1767168770405,0.01132,88730.0,88729.0,0.000663]
[1767168770607,0.0084314,88730.0,88729.0,0.000663]
[1767168770814,0.0084314,88730.0,88728.0,3.5e-06]
[1767168770933,0.05634752,88736.0,88728.0,3.5e-06]
[1767168771137,0.01132,88734.0,88728.0,3.5e-06]
[1767168771341,0.01126976,88733.0,88728.0,3.5e-06]
[1767168771643,0.01132,88734.0,88733.0,0.000113]
[1767168771838,0.02258963,88734.0,88728.0,3.5e-06]
[1767168772244,0.01132,88734.0,88728.0,3.5e-06]
[1767168772691,0.01126938,88736.0,88734.0,0.000113]
[1767168772864,0.06761489,88738.0,88736.0,0.00055]
[1767168773082,0.01126938,88736.0,88729.0,0.14219942]
[1767168775416,0.01126925,88737.0,88729.0,0.14219942]
[1767168776379,0.01126938,88736.0,88729.0,0.14219942]
[1767168776772,0.01126925,88737.0,88729.0,0.14219942]
[1767168777214,0.01126938,88736.0,88729.0,0.14219942]
[1767168778471,0.01126938,88736.0,88734.0,0.00450878]
[1767168779158,0.01126938,88736.0,88729.0,0.14219942]
[1767168779364,0.01126951,88735.0,88729.0,0.14219942]
[1767168779747,0.01126951,88735.0,88728.0,3.5e-06]
[1767168780533,0.01126938,88736.0,88728.0,3.5e-06]
[1767168780869,0.01126925,88737.0,88728.0,3.5e-06]
[1767168781222,0.01126938,88736.0,88728.0,3.5e-06]
[1767168781772,0.01126925,88737.0,88728.0,3.5e-06]
[1767168781974,0.01126912,88738.0,88737.0,0.00055]
[1767168782157,0.011269,88739.0,88729.0,0.13808]
[1767168782360,0.01126912,88738.0,88729.0,0.13808]
[1767168782556,0.01126925,88737.0,88729.0,0.13808]
[1767168783583,0.01126938,88736.0,88729.0,0.13808]
[1767168784699,0.01126951,88735.0,88729.0,0.13808]
[1767168785625,0.01126938,88736.0,88728.0,3.5e-06]
[1767168785767,0.06761662,88736.0,88728.0,3.5e-06]
[1767168785973,0.01126951,88735.0,88728.0,3.5e-06]
[1767168786848,0.01126963,88734.0,88728.0,3.5e-06]
[1767168787057,0.01126951,88735.0,88728.0,3.5e-06]
[1767168787254,0.01126963,88734.0,88728.0,3.5e-06]